Cogmind - Beta 12 @@@ ROGUE MODE // 2023.03.16 @ 13:03:01 Player: blelm Result: Destroyed by D-53 Grenadier with Mini Grenade Launcher Performance ------------- Evolutions (0) 0 Regions Visited (4) 800 Robots Destroyed (32) 160 Value Destroyed (758) 758 Prototype IDs (24) 480 Alien Tech Used (0) 0 Bonus (300) 300 TOTAL SCORE: 2498 Bonus ------- Aligned with FarCom 300 Cogmind --------- Core Integrity 0/250 Matter 275/300 Energy 100/100 System Corruption 0% Temperature Cool (0) Movement Treading (240) Ox1 Location -9/Mines Parts ------- > --- POWER (1) -------- (None) > --- PROPULSION (2) --- Improved Treads Compact Wheel > --- UTILITY (2) ------ Heat Sink High-capacity Storage Unit > --- WEAPON (2) ------- Heavy Assault Rifle > --- INVENTORY (20) --- Light Treads Improved Treads Improved Heat Sink High-capacity Battery (250) High-capacity Matter Pod (200) Thief Drone Bay (3/3) Medium Laser Grenade Launcher Mining Laser Peak State ------------ > --- POWER ------------ Improved Ion Engine > --- PROPULSION ------- Improved Treads Improved Treads > --- UTILITY ---------- Large Storage Unit Thief Drone Bay > --- WEAPON ----------- Heavy Assault Rifle Heavy Assault Rifle > --- INVENTORY -------- Ion Engine Light Nuclear Core Light Treads Improved Treads Improved Treads Compact Wheel Heat Sink High-capacity Battery High-capacity Matter Pod Medium Laser Light Assault Rifle Heavy Assault Rifle Heavy Assault Rifle Grenade Launcher Mining Laser [Rating: 20] Favorites ----------- Power Improved Ion Engine Engine Improved Ion Engine Propulsion Improved Treads Treads Improved Treads Leg Aluminum Leg Wheel Compact Wheel Utility Large Storage Unit Device Heat Sink Storage Large Storage Unit Protection Light Armor Plating Weapon Heavy Assault Rifle Energy Gun Small Laser Ballistic Gun Heavy Assault Rifle Launcher Grenade Launcher Build | -11 -10 -10 -10 -9 ------- Run | Jun Mat Min Exi Min Slots Evolved . | . . . . . Power . | . . . . . Propulsion . | . . . . . Utility . | . . . . . Weapon . | . . . . . Parts Attached 27 | 4 7 4 3 9 Power 3 | . 1 1 . 1 Engine 3 | . 1 1 . 1 Core . | . . . . . Reactor . | . . . . . Propulsion 8 | 2 2 . 2 2 Treads 5 | 1 2 . 1 1 Leg . | . . . . . Wheel 3 | 1 . . 1 1 Hover . | . . . . . Flight . | . . . . . Utility 8 | 1 2 3 1 1 Device 3 | 1 . 1 . 1 Storage 2 | . 1 . 1 . Processor . | . . . . . Hackware . | . . . . . Protection 3 | . 1 2 . . Artifact . | . . . . . Weapon 8 | 1 2 . . 5 Energy Gun . | . . . . . Energy Cannon . | . . . . . Ballistic Gun 7 | 1 2 . . 4 Ballistic Cannon . | . . . . . Launcher 1 | . . . . 1 Special Weapon . | . . . . . Impact Weapon . | . . . . . Slashing Weapon . | . . . . . Piercing Weapon . | . . . . . Special Melee Weapon . | . . . . . Unidentified Prototypes 1 | . . 1 . . Parts Lost 10 | . 1 . . 9 Power 2 | . . . . 2 Propulsion 2 | . . . . 2 Utility 2 | . 1 . . 1 Weapon 4 | . . . . 4 Highest Loss Streak 6 | . 1 . . 6 To Critical Strikes . | . . . . . Average Slot Usage (%) 98 | . 98 100 100 92 Engine 14 | . 14 14 14 14 Treads 25 | . 18 28 27 27 Wheel 2 | . 9 . . . Storage 14 | . 14 14 14 14 Protection 11 | . 11 14 14 4 Ballistic Gun 27 | . 28 28 28 25 Naked Turns . | . . . . . Heaviest Build 56 | 13 32 37 56 56 Greatest Support 46 | 20 46 46 46 46 Greatest Overweight (x) 3 | . 1 . 3 3 Average Overweight (x) . | . . . . 1 Largest Inventory Capacity 20 | 8 15 15 20 20 Average Capacity 16 | 8 13 15 18 20 Most Carried 15 | 6 15 15 15 15 Average Carried 13 | 4 10 14 15 14 Final Capacity 20 | 8 15 15 20 20 Final Carried 15 | 5 15 15 15 9 Class Distribution -------------------- 100% | Mutant Dominant Class ---------------- Mutant | -10/Materials Mutant | -10/Mines Mutant | -10/Exiles Mutant | -9/Mines Resources | -11 -10 -10 -10 -9 ----------- Run | Jun Mat Min Exi Min Matter Collected 938 | 248 314 199 . 177 Remotely . | . . . . . Salvage Created 1104 | 88 496 317 . 203 Parts 66 | 5 22 14 . 25 Haulers Intercepted 1 | . 1 . . . Recyclers Shooed 1 | . 1 . . . Parts Field Recycled . | . . . . . Retrieved Matter . | . . . . . Parts Self-Destructed . | . . . . . Prevented . | . . . . . Kills | -11 -10 -10 -10 -9 ------- Run | Jun Mat Min Exi Min Combat Hostiles Destroyed 26 | . 7 6 . 13 Guns 20 | . 7 6 . 7 AOE 6 | . . . . 6 Classes Destroyed 8 | 2 3 2 . 1 Worker 1 | . . 1 . . Tunneler 1 | 1 . . . . Hauler 1 | . 1 . . . Recycler 2 | 1 1 . . . Watcher 1 | . 1 . . . Swarmer 11 | . . . . 11 Grunt 13 | . 7 4 . 2 Sentry 2 | . . 2 . . Best Kill Streak 4 | 1 2 2 . 4 Combat Bots Only 4 | . 2 2 . 4 Max Kills in Single Turn 3 | 1 1 1 . 3 Gunslinging . | . . . . . Exploded 3 | . . . . 3 Melee . | . . . . . Uniques/NPCs Destroyed . | . . . . . Combat | -11 -10 -10 -10 -9 -------- Run | Jun Mat Min Exi Min Damage Taken 1622 | . 425 434 . 763 Core 297 | . 58 14 . 225 Absorbed by Shields . | . . . . . Redirected to Shielding 5 | . 5 . . . Core Remaining (%) 100 | 100 . . . . Volleys Fired 100 | 8 48 22 4 18 Largest 2 | 2 2 2 1 2 Hottest 60 | 60 46 46 23 46 Shots Fired 191 | 16 96 44 4 31 Gun 188 | 16 96 44 4 28 Cannon . | . . . . . Launcher 3 | . . . . 3 Special . | . . . . . Kinetic 180 | 8 96 44 4 28 Thermal 8 | 8 . . . . Explosive 3 | . . . . 3 Electromagnetic . | . . . . . Robot Hit Streak 12 | 3 12 8 . 8 Robot Miss Streak 5 | 5 2 3 . 2 Penetration Max . | . . . . . Secondary Targets . | . . . . . Shots Hit Robots 120 | 8 66 30 . 16 Core Hits 61 | 5 29 13 . 14 Critical Kills . | . . . . . Critical Parts Destroyed 2 | . 1 1 . . Critical Strikes 2 | . 1 1 . . Destroy 2 | . 1 1 . . Melee Attacks . | . . . . . Impact . | . . . . . Slashing . | . . . . . Piercing . | . . . . . Sneak Attacks . | . . . . . Combat Hostiles . | . . . . . Follow-up Attacks . | . . . . . Damage Inflicted 1828 | 68 613 497 . 650 Guns 1367 | 68 605 444 . 250 Cannons . | . . . . . Explosions 399 | . . . . 399 Melee . | . . . . . Ramming 62 | . 8 53 . 1 Kinetic 1346 | 47 605 444 . 250 Thermal 21 | 21 . . . . Explosive 399 | . . . . 399 Electromagnetic . | . . . . . Impact . | . . . . . Slashing . | . . . . . Piercing . | . . . . . Highest Corruption . | . . . . . Average Corruption . | . . . . . Corruption Purged . | . . . . . Corruption Blocked . | . . . . . Overload Shots . | . . . . . Overflow Damage 63 | . . . . 63 Projectiles . | . . . . . Explosions 63 | . . . . 63 Melee . | . . . . . Knockbacks . | . . . . . Impact . | . . . . . Kinetic . | . . . . . Secondary . | . . . . . Self-Inflicted Damage 1 | . 1 . . . Shots . | . . . . . Rammed 7 | . 2 4 . 1 Targets Rammed 8 | . 2 5 . 1 Kicked . | . . . . . Crushed 1 | . . 1 . . Highest Temperature 108 | 20 18 108 . 2 Average Temperature 23 | 15 8 40 . 2 Received Heat Transfer 516 | . 255 243 . 18 Siege Activations . | . . . . . Robots Corrupted . | . . . . . Combat Hostiles . | . . . . . Parts Fried . | . . . . . Impact Corruptions 1 | . . 1 . . Robots Melted . | . . . . . Combat Hostiles . | . . . . . Parts Melted . | . . . . . Heat Transferred 50 | 50 . . . . Parts Sabotaged . | . . . . . Parts Stolen . | . . . . . Parts Stripped . | . . . . . Power Chain Reactions . | . . . . . Missiles Intercepted . | . . . . . Alert | -11 -10 -10 -10 -9 ------- Run | Jun Mat Min Exi Min Peak Influence 308 | 10 217 137 . 308 Initial 37 | . 6 37 . . Average 80 | 6 99 51 . 129 Maximum Alert Level 1 | . 1 . . 1 Low Security (%) 91 | 100 82 100 . 82 Level 1 8 | . 17 . . 17 Level 2 . | . . . . . Level 3 . | . . . . . Level 4 . | . . . . . Level 5 . | . . . . . High Security . | . . . . . Max Security . | . . . . . Squads Dispatched 2 | . 2 . . . Investigation 2 | . 2 . . . Extermination . | . . . . . Reinforcement . | . . . . . Assault . | . . . . . Garrison . | . . . . . Intercept . | . . . . . Searches Triggered . | . . . . . Construction Impeded . | . . . . . Haulers Reinforced . | . . . . . Active Scanning Responses . | . . . . . Cargo Convoy Interrupts . | . . . . . Stealth | -11 -10 -10 -10 -9 --------- Run | Jun Mat Min Exi Min Distress Signals 1 | . 1 . . . Communications Jammed . | . . . . . Distress Signals . | . . . . . Times Spotted 34 | . 12 5 . 17 Peak Tracking Total 9 | . 3 2 9 4 Tactical Retreats 2 | . 1 . . 1 Traps | -11 -10 -10 -10 -9 ------- Run | Jun Mat Min Exi Min Traps Triggered 1 | . 1 . . . Indirectly . | . . . . . Trap Hack Attempts . | . . . . . Triggered . | . . . . . Disarmed . | . . . . . Reprogrammed . | . . . . . Reused . | . . . . . Traps Extracted . | . . . . . Installed . | . . . . . Triggered . | . . . . . Machines | -11 -10 -10 -10 -9 ---------- Run | Jun Mat Min Exi Min Machines Disabled 1 | . . . 1 . Max in Single Turn 1 | . . . 1 . Machines Repaired . | . . . . . Machines Sabotaged . | . . . . . Overloaded Fab Kills . | . . . . . Hacking | -11 -10 -10 -10 -9 --------- Run | Jun Mat Min Exi Min Machines Accessed 8 | . 3 1 2 2 Terminals 4 | . 2 . . 2 Fabricators . | . . . . . Repair Stations . | . . . . . Recycling Units 1 | . 1 . . . Scanalyzers . | . . . . . Garrison Access . | . . . . . Total Hacks 18 | . 11 1 2 4 Successful 7 | . 3 1 2 1 Failed 11 | . 8 . . 3 Catastrophic 1 | . 1 . . . Database Lockouts . | . . . . . Manual 15 | . 10 . 1 4 Terminals 12 | . 8 . . 4 Fabricators . | . . . . . Repair Stations . | . . . . . Recycling Units 3 | . 3 . . . Scanalyzers . | . . . . . Garrison Access . | . . . . . Terminal Hacks 6 | . 2 1 2 1 Record 1 | . . . 1 . Part Schematic 1 | . 1 . . . Robot Analysis 1 | . . . . 1 Open Door 1 | . . 1 . . Recall Investigation 1 | . 1 . . . EX-Prototype ID Bank 1 | . . . 1 . Fabricator Hacks . | . . . . . Repair Station Hacks . | . . . . . Recycling Unit Hacks . | . . . . . Scanalyzer . | . . . . . Garrison Access Hacks . | . . . . . Unauthorized Hacks 1 | . 1 . . . Terminals . | . . . . . Fabricators . | . . . . . Repair Stations . | . . . . . Recycling Units 1 | . 1 . . . Tunnel 1 | . 1 . . . Scanalyzers . | . . . . . Garrison Access . | . . . . . Data Cores Recovered . | . . . . . Used . | . . . . . Hacking Detections 4 | . 2 . . 2 Full Trace Events . | . . . . . Feedback Events . | . . . . . Feedback Blocked . | . . . . . Robot Schematics Acquired . | . . . . . Robots Built . | . . . . . Authchips . | . . . . . Time . | . . . . . Total Robot Build Rating . | . . . . . Part Schematics Acquired 1 | . 1 . . . Parts Built . | . . . . . Authchips . | . . . . . Time . | . . . . . Total Part Build Rating . | . . . . . Parts Repaired . | . . . . . Time . | . . . . . Parts Recycled . | . . . . . Recycled Matter . | . . . . . Retrieved Matter . | . . . . . Retrieved Components . | . . . . . Parts Scanalyzed . | . . . . . Part Schematics Acquired . | . . . . . Parts Damaged . | . . . . . Bothacking | -11 -10 -10 -10 -9 ------------ Run | Jun Mat Min Exi Min Used RIF Installer . | . . . . . Robots Hacked . | . . . . . Non-combat . | . . . . . Combat . | . . . . . Robot Hacks Applied . | . . . . . Relay Couplers Released . | . . . . . Fabnet Peak Effective % . | . . . . . Robots Rewired . | . . . . . Allies Hacked . | . . . . . Hacks Repelled . | . . . . . Allies | -11 -10 -10 -10 -9 -------- Run | Jun Mat Min Exi Min Total Allies . | . . . . . Largest Group . | . . . . . Highest-Rated Group . | . . . . . Highest-Rated Ally . | . . . . . Total Orders . | . . . . . Ally Attacks . | . . . . . Total Damage . | . . . . . Kills . | . . . . . Allies Corrupted . | . . . . . Allies Melted . | . . . . . Intel | -11 -10 -10 -10 -9 ------- Run | Jun Mat Min Exi Min Robot Analysis Total 1 | . . . . 1 Derelict Logs Recovered 3 | . . 2 . 1 Drone Launches . | . . . . . Drone Recoveries . | . . . . . Exploration | -11 -10 -10 -10 -9 ------------- Run | Jun Mat Min Exi Min Turns Passed 2865 | 71 533 1102 637 522 Spaces Moved 1397 | 40 232 624 311 190 Core . | . . . . . Treads 1158 | . 59 624 291 184 Legs 5 | 5 . . . . Wheels 234 | 35 173 . 20 6 Hover . | . . . . . Flight . | . . . . . Fastest Speed 100 | 100 100 160 145 130 Average Speed 172 | 102 123 160 201 236 Slowest Speed 240 | 120 160 160 240 240 Overloaded Moves . | . . . . . Propulsion Burnouts . | . . . . . Robots Hopped . | . . . . . Cave-ins Triggered . | . . . . . Exploration Rate (%) 52 | 5 40 98 70 50 Regions Visited 4 Branch Regions 3 Pre-discovered Areas 3 | . 1 1 1 . Known Exits Taken . | . . . . . Unknown Exits Taken 4 | 1 1 1 1 . Scrap Searched 2 | . . 1 . 1 Spaces Dug . | . . . . . Terrain Destroyed 29 | . . . . 29 Melee . | . . . . . Projectile . | . . . . . AOE 29 | . . . . 29 Terrain Rammed . | . . . . . Walls Destroyed . | . . . . . Machines Disabled . | . . . . . Actions | -11 -10 -10 -10 -9 --------- Run | Jun Mat Min Exi Min Total 1689 | 56 398 687 318 230 Wait 123 | . 92 20 . 11 Move 1393 | 39 231 623 310 190 Hop . | . . . . . Pick Up 18 | 2 11 4 . 1 Fast Attach 9 | 1 5 3 . . Attach 9 | 2 . . . 7 Detach 1 | . . 1 . . Swap 9 | 1 2 1 3 2 Drop 19 | 3 7 8 1 . Fire 100 | 8 48 22 4 18 Melee . | . . . . . Ram 1 | . 1 . . . Kick . | . . . . . Crush 7 | . 1 5 . 1 Escape Stasis . | . . . . . Rewire . | . . . . . Trap . | . . . . . Miscellaneous . | . . . . . Route ------- -11/Junkyard -10/Materials -10/Mines (discovered 3 exits: *Mat x2 / *Exi) -10/Exiles (discovered 2 exits: *Min x2) -9/Mines (discovered 1 exit: [*Mat]) History --------- Turn | Location | Event 13 | -11/Junkyard | Discovered new exit (range 2) 72 | -11/Junkyard | Entered Materials 316 | -10/Materials | Build established: Mutant 481 | -10/Materials | Discovered new exit (range 16) 605 | -10/Materials | Entered Mines 778 | -10/Mines | Learned location of 1 exit from Materials 789 | -10/Mines | Identified exit to Materials 1263 | -10/Mines | Deemed a non-threat by the Exiles lab entrance 1265 | -10/Mines | Discovered new exit (range 5) 1311 | -10/Mines | Discovered exit to Materials (range 6) 1405 | -10/Mines | Found the Drone Emporium 1414 | -10/Mines | Found Prototype Device 1414 | -10/Mines | Identified Thief Drone Bay 1537 | -10/Mines | Learned location of Storage (-9) 1707 | -10/Mines | Entered Exiles 1731 | -10/Exiles | Discovered new exit (range 15) 1751 | -10/Exiles | Met 8R-AWN 1771 | -10/Exiles | Met EX-HEX 1816 | -10/Exiles | Met EX-BIN 1835 | -10/Exiles | Met EX-DEC 1843 | -10/Exiles | Learned location of Zion (-6) 2031 | -10/Exiles | Aligned with FarCom system 2033 | -10/Exiles | Given EX-Vault access code 2088 | -10/Exiles | Opened EX-Vault 2144 | -10/Exiles | Warned to stay clear of 0b10 Research branches 2313 | -10/Exiles | Attacked by the Exiles 2331 | -10/Exiles | Discovered new exit (range 10) 2344 | -10/Exiles | Entered Mines 2710 | -9/Mines | Discovered new exit (range 5) 2733 | -9/Mines | Learned Materials security intel 2835 | -9/Mines | Assembled infested the area 2840 | -9/Mines | Assisted by a Guerilla fighting off Assembled 2854 | -9/Mines | Core integrity fell below 50% 2863 | -9/Mines | Core integrity fell below 20% 2866 | -9/Mines | Destroyed by D-53 Grenadier with Mini Grenade Launcher Last Messages --------------- 02840_ A derelict emerges from the shadows: "You need to get out of here! I've been tracking a group of Assembled to figure out where they're coming from, and they're closing on this area, come on!" 02846_ 6M-RCX(h): "I'll hold them off! Go on ahead or try to find another way!" 02848_ 6M-RCX(h) destroyed. 02849_ Imp. Treads destroyed. 02850_ U-05 Engineer lays Concrete. 02852_ The unstable cave ceiling collapses. 02852_ U-05 Engineer lays Concrete. 02852_ U-05 Engineer destroyed. 02853_ Hvy. Assault Rifle destroyed. 02854_ Imp. Treads destroyed. 02856_ D-53 Grenadier destroyed. 02860_ Hvy. Assault Rifle destroyed. 02860_ Lgt. Assault Rifle destroyed. 02863_ U-05 Engineer lays Concrete. 02864_ U-05 Engineer destroyed. 02865_ The unstable cave ceiling collapses. 02866_ Ion Engine destroyed. Map ----- +----------------------------------------------------+ | | | | | | | | | ??????????????????????????????????????????? | | ??????????????????????????????????????????? | | ??????????????????????????????????????????? | | ???????????????????????????????#######????? | | ???????????????????????????????# #????? | | ???????????????????????????????# """ #????? | | ???#######?????????????????????# """ #????? | | ?### ##????????????????????# """ ##???? | | ## #???????????????###### T#???? | | # #???????????????#[ *%* < ##???? | | ####???????????????#=##%# #????? | | ##????###############=##=# #????? | | ##????# [ ##*# #????? | | ##???# ############## #######????? | | ##??# #????????????# ##???????? | | """ ####[ #????????#### #???????? | | """ = ==#??????### ## ##??????? | | """ ####% #?????## ! ##?????? | | # ##??# #?????# % !%= #?????? | | ## ##??? #????## # = #??????? | | ?## ####??? ????# #??????? | | ??# #????? ??# @ # #??????? | | ??# #???? # d ##??????? | | ??# #???? ##???????? | | ????#??? # #????????? | | ??????? #????????? | | ???????### #????????? | | ?????????#### #???????? | | ????????????## =% #???????? | | ?????????????# ] # # #???????? | | ?????????????# # #########???????? | | ????????????# #????????????????? | | ????????????# ######?????????????????? | | ????????????? ## ???????????????????????? | | ????????????? ??# ????????????????????????? | | ??????????????????????????????????????????? | | ??????????????????????????????????????????? | | ??????????????????????????????????????????? | | ??????????????????????????????????????????? | | ??????????????????????????????????????????? | | ??????????????????????????????????????????? | | ??????????????????????????????????????????? | | ??????????????????????????????????????????? | | ??????????????????????????????????????????? | | ??????????????????????????????????????????? | | ??????????????????????????????????????????? | +----------------------------------------------------+ Best States ------------- Heat Dissipation 35 Energy Generation 12 Energy Capacity 265 Matter Stores 300 Matter Capacity 300 Sight Range 16 Terrain Scan Density 10 Armor Coverage 150 Utility Shielding 33 Evasion (%) 40 Recoil Reduction 2 Item Schematics ----------------- Huge Storage Unit | -10/Materials | Hacked Robot Schematics ------------------ None Fabricated ------------ Nothing Alien Tech Used ----------------- None Achievements -------------- None Challenges ------------ None Game ------ Seed PlatingChromaticMediator Manual? 0 Play Time 00:15:19 Cumulative 518.4 hours Start 2023.03.16 @ 12:39:23 End 2023.03.16 @ 13:03:01 Sessions 1 Manual Loads 0 Difficulty Rogue Special Mode None Game No. 276 Rogue 276 Adventurer 0 Explorer 0 Win Type - Total 26 Types 1/5/4/1/1/1/11/1/1 Lore% 91 Gallery% 91 Achievement% 76 Wizard Run 0 Options --------- ASCII 1 Keyboard 1 Movement Vi Keybinds 0 Fullscreen 2 Font 18/SmallcapsGlow Map View 76x50 Tactical HUD 1 Map Filters NONE Filters NONE Steam 1 RUN: fec6408a-ab23-438a-badb-fc254a4970d0